bitfinex-derivatives/quotes_SOLF0:USTF0_20250929
["timestamp","ask_amount","ask_price","bid_price","bid_amount"]
[1759170285870,3.33028435,209.29,209.26,7.53]
[1759170286067,7.44,209.3,209.25,4.298]
[1759170286368,2.0447752,209.32,209.26,11.8279]
[1759170286572,3.33048171,209.33,209.24,7.53]
[1759170286775,12.81525691,209.32,209.24,7.53]
[1759170286973,3.33048171,209.31,209.24,7.53]
[1759170287173,7.62778171,209.3,209.24,7.53]
[1759170287473,7.44,209.28,209.24,7.53]
[1759170288470,2.0447752,209.3,209.23,11.8284]
[1759170288669,5.38538971,209.3,209.23,11.8284]
[1759170288876,5.38538971,209.3,209.23,7.53]
[1759170289065,3.34061451,209.3,209.23,7.53]
[1759170290665,3.34061451,209.3,209.24,4.2983]
[1759170291070,3.34061451,209.3,209.25,7.53]
[1759170291274,3.34061451,209.3,209.25,4.298]
[1759170291470,3.34061451,209.31,209.25,4.298]
[1759170291866,3.34061451,209.31,209.25,6.3427752]
[1759170292278,3.34061451,209.33,209.27,7.53]
[1759170292577,10.78061451,209.32,209.26,11.8279]
[1759170292778,3.34061451,209.31,209.27,7.53]
[1759170292978,3.34061451,209.31,209.26,4.2979]
[1759170293167,3.34061451,209.31,209.27,7.53]
[1759170294182,3.34061451,209.31,209.26,4.2979]
[1759170294478,3.34061451,209.31,209.28,7.44]
[1759170294778,3.34061451,209.33,209.27,11.7377]
[1759170295075,3.34061451,209.32,209.27,4.2977]
[1759170295271,10.98061451,209.33,209.28,7.44]
[1759170295475,10.98061451,209.33,209.27,6.3424752]
[1759170295476,3.34061451,209.32,209.27,4.2977]
[1759170295781,3.34061451,209.32,209.27,6.3424752]
[1759170296478,3.34061451,209.32,209.3,7.44]
[1759170296676,7.64,209.34,209.3,7.44]
[1759170296879,3.34061451,209.33,209.3,7.44]
[1759170297084,3.34061451,209.32,209.3,7.44]
[1759170297377,3.34061451,209.33,209.3,7.44]
[1759170297577,3.34061451,209.32,209.3,7.44]
[1759170297773,3.34061451,209.33,209.3,7.44]
[1759170297974,3.34061451,209.32,209.3,7.44]
[1759170298176,3.34061451,209.33,209.3,7.44]
[1759170298378,3.34061451,209.32,209.3,7.44]
[1759170298578,3.34061451,209.33,209.3,7.44]
[1759170298778,3.34061451,209.32,209.3,7.44]
[1759170298979,3.34061451,209.33,209.3,7.44]
[1759170299180,3.34061451,209.32,209.31,9.4847752]
[1759170299382,3.34061451,209.36,209.32,7.44]
[1759170299576,3.34061451,209.35,209.31,2.0447752]
[1759170299776,3.34061451,209.36,209.31,2.0447752]
[1759170299971,3.34061451,209.35,209.32,7.44]
[1759170300175,2.0447752,209.42,209.34,7.44]
[1759170300176,3.34061451,209.36,209.34,7.44]
[1759170300375,3.34501208,209.35,209.33,2.0447752]
[1759170300579,7.64,209.39,209.33,2.0447752]
[1759170300779,7.64,209.37,209.33,2.0447752]
[1759170301078,10.98501329,209.36,209.31,11.7369]
[1759170301283,72.10161384,209.43,209.31,7.44]
[1759170301284,10.98501329,209.35,209.31,7.44]
[1759170301583,3.34501329,209.34,209.31,2.0447752]
[1759170301883,7.64,209.39,209.31,9.4847752]
[1759170302076,3.34574171,209.38,209.31,9.4847752]
[1759170302273,3.34574171,209.37,209.31,9.4847752]
[1759170302483,3.34574171,209.36,209.32,7.44]
[1759170302683,3.34574171,209.35,209.32,7.44]
[1759170302883,3.34574171,209.34,209.32,7.44]
[1759170303181,7.64,209.36,209.32,7.44]
[1759170303381,3.34733896,209.35,209.32,7.44]
[1759170303581,3.34733896,209.34,209.32,7.44]
[1759170303779,7.64,209.36,209.32,7.44]
[1759170303970,3.34695852,209.35,209.32,7.44]
[1759170304177,3.34695852,209.34,209.32,7.44]
[1759170304380,3.34739389,209.33,209.32,7.44]
[1759170305582,10.98739389,209.38,209.32,7.44]
[1759170305782,7.64,209.36,209.33,2.0447752]
[1759170306085,10.98739389,209.35,209.32,7.44]
[1759170306285,3.34739389,209.34,209.21,66.8737]
[1759170306589,10.98739389,209.33,209.29,9.4847752]
[1759170306786,4.2963,209.35,209.3,7.44]
[1759170306984,10.98774364,209.34,209.26,4.2979]
[1759170307179,3.34774364,209.33,209.27,2.0447752]
[1759170307380,10.98774364,209.32,209.28,7.44]
[1759170307687,2.0447752,209.36,209.29,2.0447752]
[1759170307688,7.64,209.36,209.29,2.0447752]
[1759170307881,7.64,209.36,209.3,7.44]
[1759170307882,3.34806357,209.35,209.3,7.44]
[1759170308080,3.34806357,209.34,209.29,2.0447752]
[1759170308282,3.34806357,209.33,209.31,2.0447752]
[1759170308483,11.936,209.36,209.31,2.0447752]
[1759170308691,3.34760935,209.35,209.32,7.44]
[1759170308982,3.34760935,209.34,209.32,7.44]
[1759170309185,3.34760935,209.33,209.32,7.44]
[1759170311284,3.34760935,209.35,209.32,7.44]
[1759170311485,3.34760935,209.34,209.32,7.44]
[1759170311681,7.64,209.36,209.32,7.44]
[1759170311880,3.34656569,209.35,209.32,7.44]
[1759170312085,3.34656569,209.34,209.32,7.44]
[1759170312286,4.2958,209.37,209.32,7.44]
[1759170312482,7.64,209.35,209.32,7.44]
[1759170312688,3.34636097,209.34,209.31,2.0447752]
[1759170312883,3.34639701,209.33,209.3,7.44]
[1759170313089,4.2963,209.35,209.29,6.3420752]
[1759170313287,3.34639544,209.34,209.3,11.7371]
[1759170313589,3.34639544,209.33,209.31,7.44]
[1759170313885,4.2958,209.37,209.31,7.44]
[1759170314084,7.64,209.35,209.31,7.44]
[1759170314285,3.34622987,209.34,209.31,7.44]
[1759170314485,3.34622987,209.33,209.31,7.44]
[1759170314790,7.64,209.35,209.31,7.44]
[1759170314991,3.34606796,209.34,209.31,7.44]
[1759170315187,3.34606796,209.33,209.31,7.44]
[1759170315391,7.62,209.33,209.27,10.1947752]
[1759170315595,3.34596839,209.32,209.27,10.1947752]
[1759170315888,4.2969,209.32,209.27,8.15]
[1759170316079,3.34639851,209.31,209.25,6.3428752]
[1759170316284,7.62,209.29,209.25,12.4481]
[1759170316488,7.62,209.31,209.23,6.3432752]
[1759170316694,7.62,209.29,209.21,10.1947752]
[1759170316887,3.34663323,209.28,209.21,10.1947752]
[1759170317694,7.64423323,209.28,209.21,14.4936752]
[1759170318098,4.2976,209.28,209.21,14.4936752]
[1759170319296,4.2979,209.26,209.21,14.4936752]
[1759170319496,7.62,209.25,209.21,8.15]
[1759170319891,4.2979,209.26,209.21,8.15]
[1759170320287,7.62,209.25,209.2,4.2991]
[1759170321097,4.2979,209.26,209.2,4.2991]
[1759170321297,4.2979,209.26,209.2,12.4491]
[1759170323698,7.62,209.28,209.2,12.4491]
[1759170323999,3.35207636,209.27,209.21,4.2989]
[1759170324301,7.62,209.28,209.21,4.2989]
[1759170324499,3.35206981,209.27,209.21,4.2989]
[1759170324698,7.62,209.28,209.21,4.2989]
[1759170324898,3.35206981,209.27,209.21,4.2989]
[1759170325200,7.62,209.28,209.21,4.2989]
[1759170325398,3.35214466,209.27,209.21,4.2989]
[1759170325599,4.2979,209.27,209.21,4.2989]
[1759170326101,11.05639551,209.34,209.23,7.63]
[1759170326401,4.2977,209.28,209.22,11.9286]
[1759170326602,7.86,209.26,209.22,11.9286]
[1759170327103,7.86,209.26,209.23,7.63]
[1759170327903,7.86,209.3,209.22,4.2986]
[1759170328200,3.35215343,209.29,209.23,7.63]
[1759170328404,3.35215343,209.28,209.23,7.63]
[1759170328604,3.35215343,209.27,209.23,7.63]
[1759170328803,7.86,209.3,209.23,7.63]
[1759170329000,4.2977,209.28,209.23,7.63]
[1759170329207,3.35225114,209.27,209.23,7.63]
[1759170329412,4.2977,209.28,209.22,11.9286]
[1759170329611,3.35226758,209.27,209.22,4.2986]
[1759170329803,4.2977,209.28,209.22,11.9286]
[1759170330111,7.65016818,209.27,209.23,7.63]
[1759170330307,4.2979,209.27,209.22,4.2986]
[1759170330610,12.1579,209.27,209.23,7.63]
[1759170331010,4.2981,209.26,209.2,129.3092]
[1759170331505,7.86,209.24,209.18,7.63]
[1759170332102,12.1584,209.24,209.18,7.63]
[1759170332713,7.86,209.29,209.18,7.63]
[1759170333012,4.2983,209.25,209.19,4.2993]
[1759170333206,3.35176563,209.24,209.2,7.63]
[1759170333412,4.2983,209.25,209.2,7.63]
[1759170333811,12.1578,209.27,209.2,4.299]
[1759170334013,3.3504456,209.26,209.2,4.299]
[1759170334210,3.3504456,209.25,209.2,4.299]
[1759170334413,7.86,209.28,209.21,7.63]
[1759170334715,3.3497886,209.27,209.21,7.63]
[1759170334915,3.3497886,209.27,209.2,11.929]
[1759170334916,3.3497886,209.26,209.2,11.929]
[1759170335213,3.3497886,209.25,209.21,7.63]
[1759170335415,7.86,209.24,209.21,7.63]
[1759170336016,4.2983,209.25,209.21,7.63]
[1759170336408,4.2983,209.25,209.2,4.299]
[1759170336616,15.50735943,209.25,209.21,7.63]
[1759170336910,12.1583,209.25,209.21,7.63]
[1759170337614,3.19639551,209.31,209.17,17.69929362]
[1759170337917,11.20885109,209.3,209.18,7.63]
[1759170338111,3.34885109,209.29,209.18,7.63]
[1759170338310,3.34885109,209.28,209.18,7.63]
[1759170338512,7.86,209.3,209.18,7.63]
[1759170338816,7.64637796,209.29,209.22,7.63]
[1759170339016,3.34897796,209.28,209.22,7.63]
[1759170339417,3.34897796,209.29,209.22,7.63]
[1759170339615,7.86,209.34,209.22,7.63]
[1759170339915,2.51657647,209.37,209.27,7.63]
[1759170339916,3.34916844,209.33,209.27,7.63]
[1759170340112,3.34909254,209.32,209.24,3.19639551]
[1759170340312,4.2964,209.34,209.26,4.2978]
[1759170340617,3.34914689,209.33,209.27,7.63]
[1759170340816,3.34914689,209.32,209.25,7.63]
[1759170341014,4.2964,209.34,209.25,7.63]
[1759170341216,3.34914484,209.33,209.25,7.63]
[1759170341416,3.34914484,209.32,209.25,7.63]
[1759170341616,4.2964,209.34,209.28,7.63]
[1759170341917,3.34908279,209.33,209.27,4.2976]
[1759170342119,3.34908279,209.32,209.28,7.63]
[1759170342318,4.2964,209.34,209.28,7.63]
[1759170342517,4.2964,209.34,209.25,117.38]
[1759170342518,11.20908798,209.33,209.26,7.63]
[1759170342718,3.34908798,209.32,209.26,7.63]
[1759170342921,7.86,209.3,209.26,7.63]
[1759170344418,66.8328,209.34,209.23,11.9285]
[1759170344620,3.3496297,209.33,209.23,11.9285]
[1759170344811,4.2975,209.29,209.23,7.63]
[1759170345117,7.86,209.27,209.21,4.299]
[1759170345319,12.1579,209.27,209.21,4.299]
[1759170345517,12.1579,209.27,209.19,15.12579551]
[1759170345917,7.86,209.27,209.2,4.2991]
[1759170347422,12.1579,209.27,209.2,4.2991]
[1759170349523,7.86,209.27,209.2,7.63]
[1759170349714,7.86,209.31,209.22,3.19639551]
[1759170349916,3.34651169,209.3,209.23,7.63]
[1759170350120,3.34651169,209.29,209.23,7.63]
[1759170350320,7.86,209.31,209.23,7.63]
[1759170350514,3.34708006,209.3,209.23,7.63]
[1759170350713,11.20708006,209.29,209.25,11.9281]
[1759170350914,7.86,209.32,209.25,4.2981]
[1759170351121,3.34708315,209.31,209.25,4.2981]
[1759170351318,11.20708315,209.3,209.25,11.9281]
[1759170351518,11.20708315,209.29,209.26,7.63]
[1759170351719,189.48321384,209.36,209.25,4.2981]
[1759170352024,7.86,209.33,209.27,7.63]
[1759170352222,3.34755233,209.32,209.26,7.63]
[1759170352520,3.34755233,209.31,209.26,7.63]
[1759170352723,7.86,209.33,209.26,7.63]
[1759170352925,3.34756065,209.32,209.26,7.63]
[1759170353123,3.34756065,209.31,209.25,3.19639551]
[1759170353320,7.86,209.31,209.27,4.2976]
[1759170354127,12.2167,209.33,209.27,4.2976]
[1759170354326,7.92,209.31,209.27,11.7476]
[1759170355025,7.92,209.32,209.25,4.2981]
[1759170355327,3.34790082,209.31,209.25,4.2981]
[1759170355626,7.92,209.29,209.25,11.7481]
[1759170355923,4.2969,209.32,209.25,11.7481]
[1759170356121,3.34843572,209.31,209.25,11.7481]
[1759170356312,3.34843572,209.3,209.26,7.45]
[1759170356518,4.2969,209.32,209.26,7.45]
[1759170356824,11.2689748,209.31,209.26,7.45]
[1759170357024,3.3489748,209.3,209.26,7.45]
[1759170357226,7.92,209.31,209.26,7.45]
[1759170357424,3.34901142,209.3,209.26,7.45]
[1759170357623,7.92,209.31,209.26,7.45]
[1759170357823,3.34944982,209.3,209.26,7.45]
[1759170358023,7.92,209.31,209.25,11.7481]
[1759170358224,3.34944982,209.3,209.26,7.45]
[1759170358425,7.92,209.31,209.26,7.45]
[1759170358725,3.3498505,209.3,209.26,4.2979]
[1759170358927,7.92,209.31,209.27,7.45]
[1759170359116,3.34973562,209.3,209.27,7.45]
[1759170359320,7.92,209.31,209.27,7.45]
[1759170359623,3.35010901,209.3,209.27,7.45]
[1759170359813,7.92,209.31,209.27,7.45]
[1759170360018,3.35010804,209.3,209.27,7.45]
[1759170360226,7.92,209.31,209.27,7.45]
[1759170360426,3.35022695,209.3,209.27,7.45]
[1759170360628,7.92,209.31,209.26,4.2979]
[1759170360826,3.35022828,209.3,209.27,7.45]
[1759170361023,7.92,209.31,209.27,7.45]
[1759170361229,3.35022762,209.3,209.27,7.45]
[1759170361417,7.92,209.31,209.26,4.2979]
[1759170361622,3.35005536,209.3,209.27,7.45]
[1759170361826,7.92,209.31,209.27,7.45]
[1759170362026,7.92,209.31,209.26,4.2979]
[1759170362027,3.35006403,209.3,209.26,4.2979]
[1759170362224,7.92,209.31,209.26,4.2979]
[1759170362431,2.51657647,209.37,209.27,3.19639551]
[1759170362432,12.2162,209.35,209.27,3.19639551]
[1759170362726,3.35015162,209.34,209.28,7.45]
[1759170362928,7.92,209.32,209.28,11.7474]
[1759170363230,3.35015162,209.31,209.29,7.45]
[1759170363527,7.92,209.35,209.29,7.45]
[1759170363732,11.26964889,209.34,209.3,7.45]
[1759170363925,3.34964889,209.33,209.3,7.45]
[1759170364125,3.34964889,209.32,209.3,7.45]
[1759170364325,11.26923775,209.31,209.24,7.45]
[1759170364524,7.92,209.29,209.19,3.19639551]
[1759170364726,3.34888414,209.28,209.19,10.64639551]
[1759170364927,11.26888414,209.27,209.19,7.45]
[1759170365130,3.34888414,209.26,209.19,7.45]
[1759170365329,4.2985,209.24,209.19,7.45]
[1759170365628,11.26625939,209.23,209.19,7.45]
[1759170365830,7.92,209.23,209.19,7.45]
[1759170366632,4.2985,209.24,209.19,7.45]
[1759170366925,11.26563262,209.23,209.19,7.45]
[1759170367129,12.2179,209.27,209.2,7.45]
[1759170367330,3.3459785,209.26,209.2,7.45]
[1759170367532,3.3459785,209.25,209.17,7.45]
[1759170367727,3.3459785,209.24,209.17,7.45]
[1759170367923,12.2179,209.27,209.17,7.45]
[1759170368231,3.34585418,209.26,209.17,7.45]
[1759170368421,3.34585418,209.25,209.17,7.45]
[1759170368625,7.92,209.23,209.17,7.45]
[1759170368826,11.26564941,209.22,209.17,7.45]
[1759170369128,7.92,209.22,209.17,7.45]
[1759170369323,7.92,209.27,209.17,7.45]
[1759170369528,7.92,209.25,209.17,7.45]
[1759170369728,3.34484726,209.24,209.17,7.45]
[1759170370033,3.34484726,209.23,209.17,7.45]
[1759170370226,11.26484726,209.22,209.17,7.45]
[1759170370431,7.92,209.22,209.17,7.45]
[1759170370727,31.05631384,209.3,209.17,7.45]
[1759170370932,11.26418554,209.29,209.17,7.45]
[1759170371133,3.34418554,209.28,209.17,7.45]
[1759170371334,3.34418554,209.27,209.17,7.45]
[1759170371632,7.92,209.29,209.17,7.45]
[1759170371633,3.34418554,209.26,209.17,7.45]
[1759170371932,12.2174,209.29,209.19,3.19639551]
[1759170372232,3.34422523,209.28,209.2,7.45]
[1759170372432,3.34422523,209.27,209.2,7.45]
[1759170372633,7.92,209.29,209.2,7.45]
[1759170372634,3.34422523,209.26,209.2,7.45]
[1759170372934,7.92,209.29,209.2,7.45]
[1759170373135,3.34516328,209.28,209.2,7.45]
[1759170373431,3.34516328,209.27,209.2,7.45]
[1759170373639,3.34516328,209.26,209.23,7.45]
[1759170373829,7.92,209.29,209.23,7.45]
[1759170374132,11.26508996,209.28,209.23,7.45]
[1759170374334,11.30508996,209.27,209.23,7.45]
[1759170374532,3.34508996,209.26,209.23,7.45]
[1759170375336,3.34508375,209.26,209.23,7.45]
[1759170376339,3.34515203,209.26,209.23,7.45]
[1759170376833,3.34515203,209.26,209.24,8.16]
[1759170377037,11.30515203,209.29,209.24,8.16]
[1759170377336,4.2973,209.3,209.24,8.16]
[1759170377337,11.30515203,209.28,209.24,8.16]
[1759170377637,3.34515203,209.27,209.22,8.16]
[1759170377837,3.34515203,209.31,209.22,8.16]
[1759170378037,3.34515203,209.3,209.22,8.16]
[1759170378233,3.34515203,209.29,209.24,8.16]
[1759170378438,7.96,209.32,209.26,4.2978]
[1759170378741,3.34564054,209.31,209.24,8.16]
[1759170378933,3.34564054,209.3,209.24,8.16]
[1759170379133,7.96,209.32,209.24,8.16]
[1759170379434,3.3461863,209.31,209.26,3.19639551]
[1759170379635,3.3461863,209.35,209.27,8.16]
[1759170379833,37.2759,209.36,209.27,8.16]
[1759170379834,3.3461863,209.34,209.27,8.16]
[1759170380036,3.3461863,209.33,209.27,8.16]
[1759170380239,7.96,209.31,209.27,4.2977]
[1759170380735,7.96,209.31,209.28,8.16]
[1759170380939,7.96,209.35,209.28,12.4574]
[1759170381131,3.34604467,209.34,209.28,12.4574]
[1759170381331,7.96,209.32,209.28,12.4574]
[1759170381543,3.34604467,209.31,209.28,12.4574]
[1759170381934,3.34604467,209.31,209.3,8.16]
[1759170382136,7.96,209.34,209.3,8.16]
[1759170382332,11.30604467,209.33,209.3,8.16]
[1759170382544,3.34604467,209.32,209.3,8.16]
[1759170382839,7.96,209.33,209.29,4.2972]
[1759170383041,3.34585932,209.32,209.29,12.4572]
[1759170383342,3.34566198,209.32,209.29,12.4572]
[1759170383644,7.96,209.31,209.29,4.2972]
[1759170384040,7.96,209.35,209.29,4.2972]
[1759170384240,7.8,209.33,209.29,4.2972]
[1759170384439,3.34566078,209.32,209.29,4.2972]
[1759170385831,3.34566078,209.32,209.27,2.04400778]
[1759170386038,3.34556592,209.31,209.28,7.52]
[1759170386745,3.34556592,209.31,209.27,2.04400778]
[1759170387038,7.8,209.32,209.27,2.04400778]
[1759170387238,12.0963,209.35,209.27,9.56400778]
[1759170387439,3.34557606,209.34,209.27,9.56400778]
[1759170387745,11.14557606,209.33,209.29,7.52]
[1759170387937,3.34557606,209.32,209.29,7.52]
[1759170388139,4.2963,209.35,209.29,6.34120778]
[1759170388342,7.8,209.33,209.29,13.86120778]
[1759170388546,3.34560003,209.32,209.3,7.52]
[1759170388740,7.8,209.34,209.3,7.52]
[1759170388940,11.14549724,209.33,209.29,6.34120778]
[1759170389137,3.34549724,209.32,209.29,13.86120778]
[1759170389339,4.2963,209.35,209.29,2.04400778]
[1759170389535,7.8,209.33,209.27,4.2977]
[1759170389842,3.34537802,209.32,209.29,9.56400778]
[1759170390044,7.8,209.33,209.29,9.56400778]
[1759170390245,3.34537597,209.32,209.3,7.52]
[1759170390439,7.8,209.36,209.3,7.52]
[1759170390640,3.3452789,209.35,209.31,2.04400778]
[1759170390844,7.8,209.38,209.32,7.52]
[1759170390845,3.3452789,209.34,209.32,7.52]
[1759170391044,7.8,209.38,209.33,2.04400778]
[1759170391245,7.8,209.36,209.33,9.56400778]
[1759170391847,4.2954,209.39,209.33,2.04400778]
[1759170392144,7.8,209.37,209.33,2.04400778]
[1759170392347,7.8,209.35,209.31,6.34090778]
[1759170392542,7.8,209.37,209.31,6.34090778]
[1759170392743,11.14343342,209.36,209.33,4.2964]
[1759170392946,7.8,209.36,209.33,11.8164]
[1759170393149,7.8,209.36,209.33,7.52]
[1759170393649,7.8,209.39,209.33,11.8164]
[1759170393851,3.34283634,209.38,209.34,7.52]
[1759170394146,3.34283634,209.4,209.34,7.52]
[1759170394348,3.34283634,209.39,209.34,7.52]
[1759170394543,3.34283634,209.41,209.35,4.296]
[1759170394744,3.34283634,209.4,209.36,7.52]
[1759170394937,2.04400778,209.44,209.36,7.52]
[1759170395139,7.8,209.42,209.36,7.52]
[1759170395343,11.14150061,209.41,209.35,2.04400778]
[1759170395543,3.34150061,209.4,209.36,11.8158]
[1759170395742,3.34150061,209.4,209.36,4.2958]
[1759170395944,3.34150061,209.42,209.36,11.8158]
[1759170396149,3.34150061,209.41,209.37,7.52]
[1759170396348,7.8,209.41,209.37,7.52]
[1759170396545,4.2946,209.43,209.37,6.33960778]
[1759170396750,3.33917772,209.42,209.37,2.04400778]
[1759170396945,3.33917772,209.41,209.37,2.04400778]
[1759170397145,3.33917772,209.44,209.38,7.52]
[1759170397347,3.33917772,209.43,209.37,9.56400778]
[1759170397648,3.33917772,209.42,209.39,7.52]
[1759170397848,7.8,209.43,209.39,7.52]
[1759170398052,3.33917772,209.42,209.38,4.2954]
[1759170398251,3.33917772,209.42,209.39,7.52]
[1759170399251,7.8,209.46,209.41,7.52]
[1759170399544,3.33592086,209.45,209.41,7.52]
[1759170399846,11.13592086,209.44,209.4,2.04400778]
[1759170400049,11.13592086,209.43,209.4,2.04400778]
[1759170400250,7.8,209.43,209.4,9.56400778]
[1759170400946,129.3538,209.47,209.4,9.56400778]
[1759170401151,3.33440595,209.46,209.42,2.04400778]
[1759170401343,3.33440595,209.5,209.42,9.56400778]
[1759170401548,3.33440595,209.49,209.42,9.56400778]
[1759170401844,2.04400778,209.52,209.42,9.56400778]
[1759170401845,3.33440595,209.5,209.42,9.56400778]
[1759170402047,3.33440595,209.49,209.43,4.2944]
[1759170402246,7.8,209.51,209.45,7.52]
[1759170402443,7.8,209.49,209.45,7.52]
[1759170402643,3.33440595,209.48,209.45,7.52]
[1759170403352,7.8,209.49,209.45,7.52]
[1759170404953,3.32784664,209.48,209.4,2.04400778]
[1759170405149,7.8,209.47,209.4,2.04400778]
[1759170405350,3.32784664,209.46,209.38,2.04400778]
[1759170405547,7.8,209.45,209.38,2.04400778]
[1759170405852,4.2944,209.44,209.38,2.04400778]
[1759170407646,7.8,209.45,209.38,2.04400778]
[1759170408047,7.8,209.45,209.39,7.52]
[1759170409050,7.8,209.45,209.4,2.04400778]
[1759170409252,7.8,209.45,209.41,7.52]
[1759170411948,4.2939,209.46,209.41,7.52]
[1759170412151,7.8,209.45,209.41,7.52]
[1759170412346,4.2939,209.46,209.41,7.52]
[1759170412543,7.8,209.45,209.41,7.52]
[1759170412853,12.0939,209.46,209.4,2.04400778]
[1759170414257,7.8,209.46,209.38,13.85930778]
[1759170414457,11.19623491,209.45,209.38,13.85930778]
[1759170414654,7.92,209.45,209.38,13.85930778]
[1759170415755,4.2944,209.44,209.38,13.85930778]
[1759170416353,7.57321968,209.44,209.38,13.85930778]
[1759170418460,3.27881968,209.44,209.39,4.2952]
[1759170418656,3.27881968,209.45,209.4,7.86]
[1759170418857,4.2939,209.46,209.39,4.2952]
[1759170419056,4.2939,209.46,209.4,7.86]
[1759170420357,7.57527483,209.46,209.4,7.86]
[1759170420558,3.28137483,209.45,209.4,7.86]
[1759170420754,7.92,209.45,209.39,4.2952]
[1759170421057,3.28137483,209.44,209.4,7.86]
[1759170421257,3.28137483,209.44,209.39,4.2952]
[1759170421557,3.28137483,209.44,209.4,7.86]
[1759170421952,11.20137483,209.44,209.38,2.04400778]
[1759170422158,3.28137483,209.43,209.39,7.86]
[1759170422358,3.28137483,209.43,209.38,2.04400778]
[1759170422559,3.28137483,209.43,209.39,7.86]
[1759170422858,3.28137483,209.43,209.38,6.33940778]
[1759170423053,3.28137483,209.45,209.38,6.33940778]
[1759170423267,3.28137483,209.44,209.38,6.33940778]
[1759170423462,3.28137483,209.46,209.39,7.86]
[1759170423663,7.57557483,209.45,209.39,7.86]
[1759170423862,3.28137483,209.44,209.39,7.86]
[1759170424058,7.92,209.43,209.38,2.04400778]
[1759170424258,3.28678511,209.42,209.38,2.04400778]
[1759170424463,7.92,209.42,209.38,9.90400778]
[1759170424869,11.20698655,209.41,209.34,9.90400778]
[1759170425068,7.92,209.39,209.32,2.04400778]
[1759170426162,7.92,209.43,209.35,7.86]
[1759170426369,3.28844002,209.42,209.35,7.86]
[1759170426664,3.28844002,209.41,209.35,7.86]
[1759170426861,3.28844002,209.42,209.35,7.86]
[1759170427064,3.28844002,209.41,209.35,7.86]
[1759170427263,7.58324002,209.42,209.35,7.86]
[1759170427462,3.28844002,209.41,209.35,7.86]
[1759170428265,3.28844002,209.41,209.37,7.86]
[1759170428465,3.28844002,209.42,209.36,9.90400778]
[1759170428659,3.28844002,209.41,209.37,7.86]
[1759170428870,3.28844002,209.42,209.36,9.90400778]
[1759170429059,11.20844002,209.41,209.36,2.04400778]
[1759170429264,3.28844002,209.4,209.36,2.04400778]
[1759170429462,3.28844002,209.4,209.37,7.86]
[1759170429659,3.28844002,209.4,209.38,7.86]
[1759170430270,3.28844002,209.4,209.39,7.86]
[1759170430467,3.28844002,209.44,209.39,7.86]
[1759170430670,3.28844002,209.44,209.38,2.04400778]
[1759170430671,3.28844002,209.43,209.4,2.04400778]
[1759170430969,11.20844002,209.45,209.42,2.04400778]
[1759170431268,3.28844002,209.44,209.42,2.04400778]
[1759170431467,3.28844002,209.43,209.42,2.04400778]
[1759170431669,3.28844002,209.44,209.42,2.04400778]
[1759170431867,3.28844002,209.43,209.42,9.90400778]
[1759170432166,3.28844002,209.44,209.42,2.04400778]
[1759170432365,3.28844002,209.43,209.42,2.04400778]
[1759170433368,3.28844002,209.43,209.42,9.90400778]
[1759170433560,3.28844002,209.47,209.43,7.86]
[1759170433763,13.21631384,209.53,209.47,7.86]
[1759170433959,7.92,209.51,209.45,2.04400778]
[1759170434169,7.52,209.49,209.45,2.04400778]
[1759170434370,3.29224994,209.48,209.45,2.04400778]
[1759170434565,7.52,209.49,209.45,2.04400778]
[1759170434771,7.52,209.49,209.45,9.73400778]
[1759170435069,7.52,209.49,209.45,2.04400778]